bitfinex/quotes_SOLUSD_20250313
["timestamp","ask_amount","ask_price","bid_price","bid_amount"]
[1741893072163,35.84091635,123.02,123.01,0.03]
[1741893072666,27.71221635,123.02,123.01,0.03]
[1741893072844,215.26216157,123.04,123.01,0.03]
[1741893073047,241.06625478,123.04,123.01,0.03]
[1741893073245,249.19375478,123.04,123.01,0.03]
[1741893073563,25.94625478,123.02,123.01,0.03]
[1741893073762,26.08841635,123.02,123.01,0.03]
[1741893075360,52.86676521,123.02,123.01,0.03]
[1741893075551,0.28432314,123.0,122.99,0.03]
[1741893075755,59.67250956,123.0,122.99,0.03]
[1741893075957,78.32215842,123.0,122.99,0.03]
[1741893076659,78.32215842,123.0,122.99,0.0001]
[1741893077362,86.45215842,123.0,122.99,0.0001]
[1741893077957,60.64806521,123.0,122.99,0.0001]
[1741893079467,86.45215842,123.0,122.99,0.0001]
[1741893079850,60.64806521,123.0,122.99,0.0001]
[1741893085268,275.84806521,123.0,122.99,0.0001]
[1741893087071,275.91106521,123.0,122.99,0.0001]
[1741893087467,241.35141635,123.0,122.99,0.0001]
[1741893088071,268.13106521,123.0,122.99,0.0001]
[1741893088268,258.87638041,123.0,122.99,0.0001]
[1741893089677,234.196972,123.0,122.99,0.0001]
[1741893089877,258.87638041,123.0,122.99,0.0001]
[1741893090264,232.09673155,123.0,122.99,0.0001]
[1741893090476,240.22673155,123.0,122.99,0.0001]
[1741893090980,258.87638041,123.0,122.99,0.0001]
[1741893092287,325.07401405,123.0,122.99,0.0001]
[1741893092461,258.87638041,123.0,122.99,0.0001]
[1741893094476,331.07561405,123.0,122.99,0.0001]
[1741893094667,331.07561405,123.0,122.95,0.03]
[1741893094668,16.83373155,122.96,122.95,0.03]
[1741893094976,35.48338041,122.96,122.95,0.03]
[1741893095878,43.61608041,122.96,122.95,0.03]
[1741893096579,24.96643155,122.96,122.95,0.03]
[1741893096788,0.28432314,122.96,122.95,0.03]
[1741893098679,16.54940841,122.98,122.95,0.03]
[1741893099475,0.28432314,122.98,122.95,0.03]
[1741893100360,16.54940841,122.99,122.95,8.1633]
[1741893100559,249.82294886,123.0,122.95,24.71270841]
[1741893100560,223.043,123.0,122.95,24.71270841]
[1741893100982,239.59240841,123.0,122.95,24.71270841]
[1741893101578,223.043,123.0,122.96,16.54940841]
[1741893102176,239.59240841,123.0,122.95,24.71270841]
[1741893102363,247.72250841,123.0,122.95,24.71270841]
[1741893102880,0.28432314,122.99,122.95,0.03]
[1741893103085,16.83373155,122.99,122.95,0.03]
[1741893104170,16.83373155,122.99,122.95,8.1632]
[1741893105287,0.28432314,122.99,122.95,24.71260841]
[1741893107501,0.28432314,122.99,122.95,8.1632]
[1741893107990,223.043,123.0,122.95,45.04600841]
[1741893108178,215.263,123.0,122.95,46.70870841]
[1741893109100,215.263,123.0,122.95,26.37530841]
[1741893109286,0.20516157,123.0,122.95,26.37530841]
[1741893109504,16.75456998,123.0,122.95,26.37530841]
[1741893110785,0.20516157,123.0,122.96,0.03]
[1741893110977,16.75456998,123.0,122.96,0.03]
[1741893111180,0.063,123.0,122.97,16.54940841]
[1741893112285,0.063,123.0,122.98,16.54940841]
[1741893112487,0.063,123.0,122.99,16.54940841]
[1741893112689,0.063,123.0,122.98,16.54940841]
[1741893113391,0.063,123.0,122.99,8.1307]
[1741893113981,0.063,123.0,122.99,24.68010841]
[1741893114277,0.063,123.0,122.99,8.1307]
[1741893116474,0.063,123.0,122.97,24.68140841]
[1741893116670,0.063,123.0,122.98,16.54940841]
[1741893117093,0.063,123.0,122.97,24.68140841]
[1741893117978,0.063,123.0,122.98,16.54940841]
[1741893118201,0.063,123.0,122.97,24.68140841]
[1741893118709,0.063,123.0,122.98,16.54940841]
[1741893119683,0.063,123.0,122.99,16.54940841]
[1741893120690,0.063,123.0,122.99,24.68010841]
[1741893124312,0.0001,123.0,122.99,26.27420841]
[1741893125086,0.0001,123.0,122.99,107.14790841]
[1741893127410,0.0001,123.0,122.99,310.34554205]
[1741893127705,0.0001,123.0,122.99,244.14790841]
[1741893128886,0.0001,123.0,122.99,310.34554205]
[1741893129619,0.0001,123.0,122.99,244.14790841]
[1741893129793,0.0001,123.04,123.02,20.0]
[1741893130025,0.0001,123.04,123.03,16.54940841]
[1741893130998,0.0001,123.04,123.03,24.67740841]
[1741893139207,0.0001,123.04,123.03,8.128]
[1741893139396,0.0001,123.04,123.01,8.1291]
[1741893142813,0.0001,123.04,123.01,24.67850841]
[1741893143021,0.0001,123.04,123.02,16.54940841]
[1741893143313,0.0001,123.04,123.01,8.1291]
[1741893143510,0.0001,123.04,123.03,16.54940841]
[1741893144625,0.0001,123.04,123.03,8.128]
[1741893144799,0.0001,123.04,123.03,24.67740841]
[1741893146315,0.0001,123.04,123.03,8.128]
[1741893147100,0.0001,123.04,123.03,24.67740841]
[1741893147704,0.0001,123.04,123.02,24.67780841]
[1741893148210,0.0001,123.04,123.03,0.03]
[1741893152605,16.83383155,123.04,123.03,0.03]
[1741893152807,37.05328041,123.04,123.03,0.03]
[1741893153420,45.18068041,123.04,123.03,0.03]
[1741893156113,20.503872,123.04,123.03,0.03]
[1741893156510,45.18068041,123.04,123.03,0.03]
[1741893157712,20.503872,123.04,123.03,0.03]
[1741893158029,37.05328041,123.04,123.03,0.03]
[1741893158202,45.18068041,123.04,123.03,0.03]
[1741893161011,1.87252314,123.0,122.99,0.03]
[1741893161210,26.18193155,123.0,122.99,0.03]
[1741893162727,34.31193155,123.0,122.99,0.03]
[1741893164346,52.96158041,123.0,122.99,0.03]
[1741893166934,44.83158041,123.0,122.99,0.03]
[1741893169374,8.04432314,123.0,122.99,0.03]
[1741893169948,24.59373155,123.0,122.99,0.03]
[1741893170523,16.83373155,123.0,122.99,0.03]
[1741893174250,43.61338041,123.0,122.99,0.03]
[1741893174417,111.31871405,123.0,122.99,0.03]
[1741893174616,45.12108041,123.0,122.99,0.03]
[1741893175135,111.31871405,123.0,122.99,0.03]
[1741893175447,45.12108041,123.0,122.99,0.03]
[1741893175863,111.31871405,123.0,122.99,0.03]
[1741893176164,111.31871405,123.0,122.99,0.0001]
[1741893176352,20.28432314,122.97,122.96,0.03]
[1741893176525,36.83373155,122.97,122.96,0.03]
[1741893179162,250.68338041,122.97,122.96,0.03]
[1741893181161,215.48432314,122.97,122.96,0.03]
[1741893181455,215.2,122.97,122.96,0.03]
[1741893181960,215.2,122.97,122.96,8.1627]
[1741893182143,215.2,122.97,122.96,0.03]
[1741893183838,0.14216157,122.99,122.96,0.03]
[1741893184145,0.28432314,122.99,122.96,0.03]
[1741893184466,16.69156998,122.99,122.96,0.03]
[1741893184666,24.82226998,122.99,122.96,0.03]
[1741893184867,35.48338041,122.98,122.96,0.03]
[1741893185367,16.54940841,122.99,122.96,0.03]
[1741893185964,0.28432314,122.98,122.96,0.03]
[1741893186954,16.54940841,123.0,122.96,0.03]
[1741893187267,0.14216157,123.0,122.96,16.57940841]
[1741893188173,0.14216157,123.0,122.97,8.132]
[1741893189138,16.69156998,123.0,122.97,8.132]
[1741893189950,0.14216157,123.0,122.97,8.132]
[1741893191238,0.14216157,122.99,122.96,0.03]
[1741893191445,0.14216157,122.99,122.96,8.1624]
[1741893191978,0.14216157,122.99,122.96,0.03]
[1741893191979,16.69156998,122.98,122.96,0.03]
[1741893192141,16.54940841,122.97,122.96,0.03]
[1741893192574,24.82306998,122.98,122.96,0.03]
[1741893193367,0.14216157,122.97,122.96,0.03]
[1741893193669,35.48338041,122.97,122.96,0.03]
[1741893194038,18.933972,122.97,122.96,0.03]
[1741893194269,35.48338041,122.97,122.96,0.03]
[1741893195640,215.36216157,123.01,122.96,0.03]
[1741893195847,215.36216157,123.01,122.97,16.54940841]
[1741893196046,215.36216157,123.01,122.96,16.57940841]
[1741893196367,0.20516157,122.99,122.96,0.03]
[1741893201055,16.75456998,122.99,122.96,0.03]
[1741893201255,0.20516157,122.99,122.96,0.03]
[1741893201451,16.75456998,122.99,122.96,0.03]
[1741893201664,24.88536998,122.99,122.96,0.03]
[1741893202046,16.75456998,122.99,122.96,0.03]
[1741893202468,0.063,122.99,122.96,0.03]
[1741893205868,0.063,122.99,122.96,16.57940841]
[1741893206069,0.063,122.99,122.97,16.54940841]
[1741893206764,0.063,122.99,122.98,16.54940841]
[1741893206970,0.063,122.99,122.98,24.68080841]
[1741893210971,0.063,122.99,122.97,8.1317]
[1741893211163,0.063,122.99,122.96,1.6645]
[1741893211354,0.063,122.99,122.96,0.03]
[1741893214882,0.063,122.99,122.96,16.57940841]
[1741893215264,0.063,122.99,122.98,36.54940841]
[1741893215660,0.063,122.99,122.98,38.13620841]
[1741893215860,0.063,122.99,122.98,46.26760841]
[1741893217774,0.063,123.03,123.02,8.1287]
[1741893219890,0.063,123.03,123.02,24.67810841]
[1741893223766,0.0001,123.04,123.03,1.5224]
[1741893223961,0.0001,123.04,123.03,18.07180841]
[1741893224782,0.0001,123.04,123.03,26.19980841]
[1741893230176,0.0001,123.04,123.03,24.67740841]
[1741893233093,0.0001,123.04,123.03,24.70740841]
[1741893237976,0.0001,123.04,123.03,0.03]
[1741893240379,0.0001,123.04,123.03,16.57940841]
[1741893241892,0.0001,123.04,123.03,24.70740841]
[1741893242376,0.0001,123.04,123.03,0.03]
[1741893243074,0.0001,123.04,123.03,24.70740841]
[1741893243280,0.0001,123.04,123.03,44.70740841]
[1741893243496,0.0001,123.04,123.03,28.158]
[1741893244081,0.0001,123.04,123.03,44.70740841]
[1741893245787,0.0001,123.04,123.03,0.03]
[1741893246583,0.0001,123.04,123.03,8.158]
[1741893246785,0.0001,123.04,123.03,0.03]
[1741893247480,0.0001,123.04,123.03,8.158]
[1741893247985,0.0001,123.04,123.03,24.70740841]
[1741893248187,0.0001,123.04,123.03,44.70740841]
[1741893255409,0.0001,123.06,123.03,144.69311884]
[1741893255583,0.0001,123.06,123.05,121.53885248]
[1741893255901,0.0001,123.06,123.05,345.42565248]
[1741893256207,0.0001,123.06,123.05,354.05235248]
[1741893256586,0.0001,123.06,123.05,353.55235248]
[1741893257098,0.0001,123.06,123.05,354.05235248]
[1741893257487,0.0001,123.06,123.05,353.55235248]
[1741893257882,0.0001,123.06,123.05,354.05235248]
[1741893258378,0.063,123.12,123.06,18.79181043]
[1741893258606,0.063,123.12,123.11,16.54940841]
[1741893260411,0.063,123.12,123.1,16.54940841]
[1741893260612,0.063,123.12,123.11,8.1228]
[1741893261079,0.063,123.12,123.11,24.67220841]
[1741893263408,0.063,123.12,123.11,8.1228]
[1741893263988,0.063,123.12,123.11,24.67220841]
[1741893268712,0.063,123.12,123.11,105.54590841]
[1741893269622,0.063,123.12,123.11,88.9965]
[1741893270611,0.063,123.12,123.11,105.54590841]
[1741893271412,0.063,123.12,123.11,80.8737]
[1741893273813,0.063,123.12,123.11,88.9965]
[1741893274017,0.063,123.12,123.11,105.54590841]
[1741893274511,0.063,123.12,123.11,24.67220841]
[1741893280304,0.0001,123.12,123.11,24.67220841]
[1741893283238,0.0001,123.12,123.11,105.54590841]
[1741893286850,0.0001,123.12,123.08,36.86010841]
[1741893287514,0.0001,123.12,123.09,16.54940841]
[1741893287915,0.0001,123.12,123.09,24.67320841]
[1741893292453,0.0001,123.12,123.09,8.1238]
[1741893292652,16.54940841,123.11,123.09,0.03]
[1741893293849,24.95613155,123.12,123.09,0.03]
[1741893295137,16.54940841,123.1,123.09,0.03]
[1741893295438,32.28943155,123.1,123.09,0.03]
[1741893295947,40.41283155,123.1,123.09,0.03]
[1741893296330,32.28943155,123.1,123.09,0.03]
[1741893297158,40.41283155,123.1,123.09,0.03]
[1741893298254,255.39283155,123.1,123.09,0.03]
[1741893299529,247.26943155,123.1,123.09,0.03]
[1741893300053,246.98510841,123.1,123.09,0.03]
[1741893300358,214.98,123.1,123.09,0.03]
[1741893301430,239.93713155,123.1,123.09,0.03]
[1741893301937,246.12743155,123.1,123.09,0.03]
[1741893302137,247.68483155,123.1,123.09,0.03]
[1741893302960,0.28432314,123.09,123.06,0.03]
[1741893303262,16.83373155,123.07,123.06,0.03]
[1741893303464,98.95456519,123.07,123.06,0.03]
[1741893304645,105.58501534,123.07,123.06,0.03]
[1741893305063,6.6594,123.03,122.96,0.03]
[1741893305361,16.54940841,122.97,122.96,0.03]
[1741893305531,16.83373155,122.97,122.96,0.03]
[1741893305736,24.57373155,122.97,122.96,0.03]
[1741893305939,31.12193155,122.97,122.89,122.8274703]
[1741893306131,16.54940841,122.94,122.89,122.8274703]
[1741893306352,25.87921012,122.94,122.89,132.15727201]
[1741893306543,26.02137169,122.92,122.9,12.73218094]
[1741893306765,26.02137169,122.91,122.9,12.73218094]
[1741893307058,26.16353326,122.91,122.9,12.73218094]
[1741893308446,26.16353326,122.91,122.9,0.03]
[1741893309965,7.74,122.92,122.9,0.03]
[1741893310273,26.16353326,122.91,122.9,0.03]
[1741893311353,0.28432314,122.91,122.9,0.03]
[1741893311557,26.02137169,122.91,122.9,0.03]
[1741893311760,0.14216157,122.91,122.9,0.03]
[1741893311935,7.74,122.92,122.9,0.03]
[1741893312143,0.14216157,122.92,122.9,0.03]
[1741893313845,25.87921012,122.92,122.9,0.03]
[1741893314240,25.87921012,122.94,122.9,0.03]
[1741893314446,33.90353326,122.96,122.91,25.87921012]
[1741893314750,25.87921012,122.95,122.9,25.90921012]
[1741893315161,33.61921012,122.96,122.91,54.35521012]
[1741893315470,0.28432314,122.98,122.93,25.87921012]
[1741893315645,248.63921012,122.99,122.94,25.87921012]
[1741893316460,26.16353326,122.98,122.92,25.87921012]
[1741893316669,25.87921012,122.97,122.92,25.87921012]
[1741893316844,26.16353326,122.98,122.93,25.87921012]
[1741893317253,26.16353326,122.98,122.94,8.134]
[1741893317863,0.28432314,122.98,122.94,8.134]
[1741893318381,0.28432314,122.98,122.94,34.01321012]
[1741893318577,26.16353326,122.98,122.94,8.134]
[1741893319591,25.87921012,122.97,122.93,8.1345]
[1741893321281,25.87921012,122.95,122.91,80.9037]
[1741893321480,25.87921012,122.95,122.91,0.03]
[1741893322180,25.87921012,122.95,122.91,8.1658]
[1741893322889,0.28432314,122.95,122.91,8.1658]
[1741893323080,0.28432314,122.95,122.91,34.04501012]
[1741893324394,26.02137169,122.92,122.91,0.03]
[1741893329103,215.28,122.93,122.91,0.03]
[1741893329822,215.28,122.93,122.91,25.90921012]
[1741893330009,215.28,122.93,122.91,34.04521012]
[1741893330201,215.28,122.93,122.91,25.90921012]
[1741893330370,215.28,122.93,122.91,34.04511012]
[1741893330567,215.28,122.93,122.91,25.90921012]
[1741893333181,215.28,122.93,122.91,0.03]
[1741893333701,223.4148,122.93,122.91,0.03]
[1741893333885,0.14216157,122.92,122.91,0.03]
[1741893334195,34.29883326,122.92,122.91,0.03]
[1741893334380,41.87323326,122.92,122.91,0.03]
[1741893334574,41.87323326,122.92,122.91,0.0001]
[1741893340405,49.61323326,122.92,122.91,0.0001]
[1741893346403,43.53953326,122.92,122.91,0.0001]
[1741893348890,43.53953326,122.92,122.9,0.0101]
[1741893349080,26.16353326,122.91,122.9,0.0101]
[1741893349422,34.29953326,122.91,122.9,0.0101]
[1741893350904,0.28432314,122.91,122.9,0.0101]
[1741893351103,34.29953326,122.91,122.9,0.0101]
[1741893352014,26.16353326,122.91,122.9,0.0101]
[1741893352806,34.29953326,122.91,122.9,0.0101]
[1741893356413,26.16353326,122.91,122.9,0.0101]
[1741893356580,34.29953326,122.91,122.9,0.0101]
[1741893356979,249.67953326,122.91,122.9,0.0101]
[1741893357384,215.66432314,122.91,122.9,0.0101]
[1741893358303,249.67953326,122.91,122.9,0.0101]
[1741893360204,241.54353326,122.91,122.9,0.0101]
[1741893360787,249.67953326,122.91,122.9,0.0101]
[1741893361711,34.29953326,122.91,122.9,0.0101]
[1741893361904,0.14216157,122.91,122.9,0.0101]
[1741893362203,26.16353326,122.91,122.9,0.0101]
[1741893364007,34.29953326,122.91,122.9,0.0101]
[1741893365514,34.36253326,122.91,122.9,0.0101]
[1741893366504,249.74253326,122.91,122.9,0.0101]
[1741893366817,241.60653326,122.91,122.9,0.0101]
[1741893367030,249.74253326,122.91,122.9,0.0101]
[1741893367702,215.72732314,122.91,122.9,0.0101]
[1741893367902,241.60653326,122.91,122.9,0.0101]
[1741893368304,249.74253326,122.91,122.9,0.0101]
[1741893368715,241.60653326,122.91,122.9,0.0101]
[1741893369210,249.74253326,122.91,122.9,0.0101]
[1741893370228,20.0,122.88,122.83,80.8737]
[1741893370417,0.14216157,122.85,122.83,80.8737]
[1741893370602,26.02137169,122.85,122.8,8.1429]
[1741893370919,7.88216157,122.87,122.79,88.7205]
[1741893370920,26.02137169,122.83,122.79,88.7205]
[1741893371121,26.02137169,122.83,122.78,0.03]
[1741893371122,25.87921012,122.81,122.78,0.03]
[1741893372222,0.14216157,122.8,122.78,0.03]
[1741893372720,25.87921012,122.83,122.78,34.05381012]
[1741893373402,25.87921012,122.83,122.78,8.1746]
[1741893373612,26.02137169,122.81,122.78,0.03]
[1741893373823,0.14216157,122.81,122.78,0.03]
[1741893374020,0.28432314,122.81,122.78,0.03]
[1741893374229,0.14216157,122.81,122.78,0.03]
[1741893374420,25.87921012,122.81,122.78,0.03]
[1741893374718,0.14216157,122.8,122.78,0.03]
[1741893375311,25.87921012,122.81,122.78,0.03]
[1741893376527,0.14216157,122.82,122.78,25.90921012]
[1741893377530,0.14216157,122.82,122.79,8.1439]
[1741893377905,0.14216157,122.83,122.79,34.02311012]
[1741893378215,26.02137169,122.83,122.78,34.05351012]
[1741893378417,0.14216157,122.82,122.78,25.90921012]
[1741893378723,0.14216157,122.81,122.78,8.1746]
[1741893379332,0.14216157,122.81,122.78,0.03]
[1741893380814,26.02137169,122.81,122.78,0.03]
[1741893381629,0.14216157,122.81,122.78,0.03]
[1741893382335,7.74,122.82,122.78,25.90921012]
[1741893383734,7.74,122.82,122.79,8.1439]
[1741893387029,7.74,122.82,122.78,25.90921012]
[1741893387327,25.87921012,122.82,122.78,8.1743]
[1741893387517,0.14216157,122.82,122.78,34.05351012]
[1741893387827,215.48,122.83,122.78,34.05351012]
[1741893388028,0.14216157,122.82,122.78,34.05351012]
[1741893388343,0.14216157,122.82,122.78,8.1743]
[1741893388524,0.14216157,122.82,122.78,34.05351012]
[1741893388903,26.02137169,122.82,122.78,8.1743]
[1741893389226,0.14216157,122.82,122.78,34.05351012]
[1741893389430,0.14216157,122.82,122.78,8.1743]
[1741893390331,0.20516157,122.82,122.78,34.05351012]
[1741893390504,34.22637169,122.82,122.78,8.1743]
[1741893390713,34.22637169,122.82,122.78,0.03]
[1741893391013,0.20516157,122.82,122.78,8.1745]
[1741893391813,0.20516157,122.82,122.78,34.05371012]
[1741893393142,0.063,122.82,122.79,25.87921012]
[1741893394422,0.063,122.82,122.79,8.1436]
[1741893395030,0.063,122.82,122.79,34.02281012]
[1741893396331,0.063,122.82,122.79,8.1436]
[1741893396520,0.063,122.82,122.78,8.1746]
[1741893397530,0.063,122.82,122.78,34.05381012]
[1741893397719,0.063,122.82,122.8,25.87921012]
[1741893398634,0.063,122.82,122.81,8.1426]
[1741893398925,0.063,122.82,122.81,34.02181012]
[1741893399131,0.063,122.82,122.81,122.73181012]
[1741893400438,0.0001,122.82,122.81,122.73181012]
[1741893409722,0.0001,122.82,122.81,261.09476356]
[1741893409922,0.0001,122.82,122.81,259.87397169]
[1741893410439,0.0001,122.82,122.81,250.57251386]
[1741893410740,0.0001,122.82,122.81,317.02568459]
[1741893411240,0.0001,122.82,122.81,250.57251386]
[1741893411631,0.0001,122.82,122.81,250.43035229]
[1741893412945,0.0001,122.82,122.81,250.57251386]
[1741893416941,0.0001,122.82,122.81,250.43035229]
[1741893417204,0.0001,122.82,122.81,242.59405229]
[1741893417457,0.0001,122.82,122.81,105.59405229]
[1741893417751,0.0001,122.82,122.81,80.8737]
[1741893417954,16.72001386,122.82,122.79,0.03]
[1741893418253,16.57775229,122.81,122.79,0.03]
[1741893419428,24.72035229,122.81,122.79,0.03]
[1741893419652,16.86207543,122.8,122.79,0.03]
[1741893420349,26.22599892,122.8,122.79,0.03]
[1741893422862,249.82929892,122.8,122.79,0.03]
[1741893423150,16.58392314,122.79,122.77,0.03]
[1741893423330,0.28432314,122.74,122.67,25.94167578]
[1741893423652,0.28432314,122.74,122.67,8.1518]
[1741893423653,25.94167578,122.71,122.67,8.1518]
[1741893424023,25.94167578,122.72,122.67,34.09347578]
[1741893424226,25.94167578,122.7,122.67,8.1518]
[1741893424549,26.08383735,122.71,122.67,8.1518]
[1741893425050,25.94167578,122.72,122.67,34.09347578]
[1741893425229,25.94167578,122.72,122.68,25.94167578]
[1741893425431,26.08383735,122.72,122.67,8.1518]
[1741893425642,25.94167578,122.72,122.67,34.09347578]
[1741893426038,25.94167578,122.72,122.67,54.47327578]
[1741893426439,25.94167578,122.72,122.67,54.50327578]
[1741893426626,8.33496157,122.73,122.68,25.94167578]
[1741893426832,27.61103735,122.73,122.68,25.94167578]
[1741893427059,27.61103735,122.73,122.69,8.1506]
[1741893427439,25.94167578,122.72,122.69,8.1506]
[1741893427951,27.61103735,122.73,122.69,8.1506]
[1741893428329,25.94167578,122.72,122.69,8.1506]
[1741893429153,25.94167578,122.72,122.68,8.1512]
[1741893429567,25.94167578,122.71,122.68,8.1512]
[1741893430050,1.66936157,122.73,122.68,8.1512]
[1741893430051,25.94167578,122.72,122.68,8.1512]
[1741893430652,27.46887578,122.73,122.68,135.34477578]
[1741893430863,33.66167578,122.74,122.69,25.94167578]
[1741893431176,7.72,122.74,122.7,8.1499]
[1741893431368,25.94167578,122.74,122.7,8.1499]
[1741893431861,27.53307578,122.77,122.71,25.94167578]
[1741893432063,27.53307578,122.77,122.71,106.81537578]
[1741893432256,25.94167578,122.76,122.71,106.81537578]
[1741893432764,25.94167578,122.76,122.71,106.51537578]
[1741893433370,25.94167578,122.74,122.71,80.5737]
[1741893433558,25.94167578,122.74,122.7,145.1498]
[1741893433861,0.14216157,122.75,122.7,145.1498]
[1741893433862,26.08383735,122.75,122.7,145.1498]
[1741893434065,25.94167578,122.75,122.7,145.1498]
[1741893434267,25.94167578,122.74,122.7,145.1498]
[1741893435565,26.08383735,122.75,122.7,170.79147578]
[1741893436779,26.08383735,122.75,122.7,144.8498]
[1741893436959,26.08383735,122.75,122.7,170.79147578]
[1741893438064,217.2114,122.77,122.71,25.94167578]
[1741893438277,25.94167578,122.76,122.7,28.5246]
[1741893438569,25.94167578,122.76,122.71,25.94167578]
[1741893439270,215.683,122.77,122.72,25.94167578]
[1741893439677,215.683,122.77,122.73,25.94167578]
[1741893439872,0.063,122.76,122.73,25.94167578]
[1741893440174,0.063,122.76,122.73,8.1476]
[1741893440881,0.063,122.76,122.73,34.08927578]
[1741893441453,0.063,122.76,122.74,25.94167578]
[1741893441860,0.063,122.76,122.75,25.94167578]
[1741893442096,0.063,122.76,122.75,34.08827578]
[1741893442376,0.063,122.76,122.75,251.36197578]
[1741893443773,0.063,122.76,122.75,217.2737]
[1741893443966,0.063,122.76,122.73,8.1477]
[1741893445262,0.063,122.76,122.73,34.08937578]
[1741893445775,0.063,122.76,122.75,25.94167578]
[1741893446152,0.063,122.76,122.75,34.08827578]
[1741893446362,0.063,122.76,122.75,114.66197578]
[1741893446665,0.063,122.76,122.75,251.36197578]
[1741893452670,0.063,122.77,122.75,259.36629892]
[1741893452869,0.0001,122.77,122.76,51.88335156]
[1741893453070,0.0001,122.77,122.76,61.13622295]
[1741893453982,0.0001,122.77,122.76,69.28212295]
[1741893454169,0.0001,122.82,122.77,0.14216157]
[1741893454373,0.0001,122.82,122.81,25.94167578]
[1741893454576,0.0001,122.82,122.81,106.51537578]
[1741893455982,0.0001,122.82,122.81,114.65797578]
[1741893456868,0.0001,122.82,122.81,251.35797578]
[1741893457272,0.0001,122.82,122.81,225.4163]
[1741893457488,0.0001,122.82,122.81,251.35797578]
[1741893459779,0.0001,122.82,122.81,251.64229892]
[1741893459973,0.0001,122.82,122.81,251.35797578]
[1741893464570,0.0001,122.82,122.81,225.4163]
[1741893464776,0.0001,122.82,122.81,217.2737]
[1741893464976,0.0001,122.82,122.81,88.7163]
[1741893466698,0.0001,122.82,122.81,114.65797578]
[1741893466986,0.0001,122.82,122.81,106.51537578]
[1741893467199,0.0001,122.82,122.81,80.5737]
[1741893467402,0.0001,122.82,122.78,34.08597578]
[1741893467695,25.94177578,122.82,122.78,88.718]
[1741893467884,25.94167578,122.81,122.78,80.5737]
[1741893468577,25.94167578,122.8,122.78,80.5737]
[1741893468890,26.08383735,122.81,122.78,80.5737]
[1741893469087,25.94167578,122.8,122.78,80.5737]
[1741893469893,25.94167578,122.8,122.76,136.73]
[1741893469894,25.94167578,122.8,122.77,8.1453]
[1741893470081,26.08383735,122.81,122.77,8.1453]
[1741893470990,25.94177578,122.82,122.77,34.08697578]
[1741893472774,25.94167578,122.81,122.77,8.1453]
[1741893473770,25.94177578,122.82,122.77,34.08697578]
[1741893474297,25.94167578,122.81,122.77,8.1453]
[1741893475181,25.94167578,122.81,122.76,88.7494]
[1741893475384,25.94167578,122.8,122.76,88.7494]
[1741893475791,26.08383735,122.81,122.77,0.03]
[1741893476402,34.22653735,122.81,122.77,0.03]
[1741893476609,26.08383735,122.81,122.77,0.03]
[1741893478187,25.94167578,122.81,122.77,0.03]
[1741893479407,34.08447578,122.81,122.77,0.03]
[1741893480309,0.14226157,122.82,122.77,25.97167578]
[1741893480509,25.94177578,122.82,122.77,25.97167578]
[1741893480807,25.94167578,122.81,122.77,0.03]
[1741893482502,26.08383735,122.8,122.77,0.03]
[1741893483298,25.94167578,122.81,122.77,0.03]
[1741893483504,0.28442314,122.82,122.77,0.03]
[1741893483882,25.94167578,122.81,122.77,0.03]
[1741893484084,25.94167578,122.8,122.77,0.03]
[1741893484431,0.0001,122.82,122.78,25.94167578]
[1741893484581,0.0001,122.82,122.79,25.94167578]
[1741893484901,0.0001,122.82,122.78,25.94167578]
[1741893485288,0.0001,122.82,122.79,8.1439]
[1741893485893,0.0001,122.82,122.79,34.08557578]
[1741893486207,0.0001,122.82,122.79,8.1439]
[1741893487197,25.94167578,122.81,122.78,80.5737]
[1741893487708,25.94167578,122.8,122.77,0.03]
[1741893488103,34.08427578,122.81,122.77,0.03]
[1741893488509,25.94167578,122.81,122.77,8.175]
[1741893488709,25.94177578,122.82,122.77,34.11667578]